[Event "Aktobe Open 2022"]
[Site "Aktobe"]
[Date "2022.06.15"]
[Round "2.5"]
[White "Nurgali, Nazerke"]
[Black "Sivuk, Vitaly"]
[Result "1/2-1/2"]
[ECO "D77"]
[WhiteElo "2237"]
[BlackElo "2529"]
[Annotator "TA"]
[PlyCount "121"]
[EventDate "2022.06.14"]
[EventType "swiss"]
[EventCountry "KAZ"]
[SourceTitle "playchess.com"]
[Source "ChessBase"]
[SourceQuality "1"]
[TimeControl "5400+30"]

{[%evp 22,121,20,8,20,-32,-32,-31,0,-22,-22,-57,0,-71,-77,-74,-79,-76,-77,-68,-68,-65,-54,-55,-52,-52,-32,-80,-63,-100,-12,-14,30,14,25,6,32,26,54,53,62,50,91,0,52,53,57,53,80,53,101,56,133,32,75,85,96,90,96,37,36,18,17,15,14,0,0,0,129,29,112,-87,25,0,0,0,12,0,0,0,0,0,6,0,535,0,0,0,0,0,0,0,0,0,0,0,0,0,0,0,0,0]} 1. d4 {[%emt 0:00:04]} Nf6 {[%emt 0:00:12]} 2. c4 {[%emt 0:00:17]} g6 {[%emt 0:00:10]} 3. Nf3 {[%emt 0:00:31]} Bg7 {[%emt 0:00:09]} 4. g3 {[%emt 0:00:47]} O-O {[%emt 0:00:18]} 5. Bg2 {[%emt 0:00:48]} d5 {[%emt 0:00:17]} 6. O-O {[%emt 0:01:30]} dxc4 {[%emt 0:01:25]} 7. Na3 {[%emt 0:04:49]} c3 {[%emt 0:02:39]} 8. bxc3 {[%emt 0:00:32]} c5 {[%emt 0:00:06]} 9. Ne5 {[%emt 0:04:02]} Nc6 {[%emt 0:03:44]} 10. Nac4 {[%emt 0:10:10]} Be6 {[%emt 0:10:43]} 11. Nxc6 {[%emt 0:04:40]} bxc6 {[%emt 0:00:07]} 12. Ne5 {[%emt 0:01:36]} Bd5 {[%emt 0:00:48] [#] D77: Fianchetto Grünfeld: 6 0-0: Replies other than 6...c6.} 13. Bxd5 $146 {[%emt 0:15:32]} (13. Ba3 $11) ({Predecessor:} 13. Ba3 Bxg2 14. Kxg2 Qd5+ 15. f3 cxd4 16. cxd4 Nd7 17. Bxe7 Rfe8 18. e4 Qe6 19. Nxd7 Qxe7 20. Nc5 {0-1 (36) Hesham,A (2450)-Artemiev,V (2736) Astana 2019}) 13... cxd5 $15 {[%emt 0:02:21]} 14. f3 {[%emt 0:02:11] Prevents Ne4.} Qa5 {[%emt 0:01:53] Against Ba3. Black is slightly better.} 15. Qd3 {[%emt 0:04:10]} Rfc8 {[%emt 0:01:16]} 16. Bg5 {[%emt 0:07:12]} Rab8 {[%emt 0:05:57]} (16... Ne8 $15 17. Bf4 (17. Bxe7 Rc7 $17) 17... Nd6) 17. Bxf6 {[%emt 0:09:52]} (17. Rfb1 $11 Rxb1+ 18. Rxb1) 17... exf6 $17 {[%emt 0:03:32]} 18. Nd7 {[%emt 0:00:33][%csl LRb8,LRc5]} c4 {[%emt 0:00:22]} 19. Qc2 {[%emt 0:00:11]} Rb7 {[%emt 0:03:05]} 20. Nc5 {[%emt 0:00:11]} Rbc7 {[%emt 0:00:22]} 21. e4 {[%emt 0:05:02]} Bf8 {[%emt 0:01:12]} 22. Na4 {[%emt 0:00:09]} h5 {[%emt 0:02:30]} 23. Nb2 {[%emt 0:02:26]} Re8 {[%emt 0:08:55]} 24. Nd1 {[%emt 0:03:34]} (24. Qa4 $15 {was preferrable.} Qxa4 25. Nxa4) 24... dxe4 {[%emt 0:02:24]} 25. fxe4 {[%emt 0:00:06]} Qg5 {[%emt 0:00:07]} (25... Rce7 $17 26. Re1 Bg7) 26. Rf3 $11 {[%emt 0:02:52]} Rce7 {[%emt 0:05:53]} 27. Nf2 {[%emt 0:00:24] next h4 is good for White.} h4 {[%emt 0:00:15]} 28. Rf1 {[%emt 0:02:20][%cal Oe4e5] Threatens to win with e5!} Bg7 {[%emt 0:03:03]} 29. Qa4 {[%emt 0:01:54]} Rc8 {[%emt 0:06:53]} 30. Qa6 {[%emt 0:00:59]} Rcc7 {[%emt 0:03:14]} 31. Qd6 {[%emt 0:06:17]} Rcd7 {[%emt 0:13:20]} 32. Qa6 {[%emt 0:02:17]} (32. Qb8+ $16 Kh7 33. Rb1) 32... Rb7 {[%emt 0:04:34]} ({Better is} 32... Rc7 $1 $11) 33. Qxc4 $14 {[%emt 0:00:53]} Rec7 {[%emt 0:00:05] Inhibits Qc8+.} 34. Qe2 {[%emt 0:01:27]} Qa5 {[%emt 0:00:29]} 35. Qd2 {[%emt 0:01:53]} Qa3 {[%emt 0:00:34]} (35... hxg3 $14 36. hxg3 (36. Rxg3 Rc6 $14) 36... Rb6) 36. Nd1 {[%emt 0:01:28]} Rb1 {[%emt 0:00:40]} (36... Re7 $14) 37. c4 {[%emt 0:01:20]} (37. gxh4 $16 {[%cal Oh4h5] And now h5! would win.} Qa5 38. d5) 37... Qd6 {[%emt 0:03:25]} 38. Qd3 {[%emt 0:00:15]} (38. gxh4 Rxc4 39. Nf2 Rxd4 $17) 38... Rb4 {[%emt 0:03:12]} 39. Ne3 {[%emt 0:00:35]} (39. gxh4 Rcxc4 40. e5 fxe5 41. Rxf7 Rxd4 $17) 39... Ra4 {[%emt 0:00:45]} 40. R1f2 {[%emt 0:01:42]} (40. Qd1 $16 Rcxc4 41. Nxc4 Rxc4 42. e5 (42. gxh4 Rxd4 43. Qe1 Qe6 $14)) 40... h3 $1 {[%emt 0:02:22][%cal Of6f5]} 41. Qd1 {[%emt 0:00:36]} Raxc4 {[%emt 0:02:04]} 42. Nxc4 {[%emt 0:00:17]} Rxc4 {[%emt 0:00:05]} 43. Rd3 {[%emt 0:01:06]} f5 {[%emt 0:00:43]} 44. e5 {[%emt 0:00:31]} (44. exf5 Bxd4 45. Kf1 Qd5 $17) 44... Qc6 {[%emt 0:02:13]} (44... Qb6 $11 {keeps the balance.}) 45. Qf3 {[%emt 0:00:15]} (45. d5 $1 $16 {[%cal Rd5c6]} Qb6 46. d6 (46. Rb3 $2 Qc5 $19) 46... Bxe5 47. d7) 45... Qb6 {[%emt 0:00:55]} (45... Qc7 $11) 46. Qe3 $2 {[%emt 0:01:47] [#]} (46. g4 $1 $16 {[%cal Rg4f5]}) 46... Kh7 {[%emt 0:01:57]} ({Much less strong is} 46... Qb1+ 47. Rf1 Qxa2 48. Rd2 $11) ({Black should try} 46... Bh6 $1 $17 {( -> ...Qb1+)} 47. Qf3 (47. Qxh6 $2 Qb1+ 48. Rf1 Qxd3 $19) 47... Rxd4 48. Rxd4 Qxd4) 47. Rd1 {[%emt 0:00:15][%cal Og3g4] Inhibits Qb1. g4! is the strong threat.} (47. g4 $5 fxg4 48. Qe4 $14 (48. Rxf7 Qb2 $11)) 47... Bh6 $1 {[%emt 0:00:42]} 48. Qb3 {[%emt 0:00:30]} Qc7 {[%emt 0:01:04] aiming for ...Rc3.} 49. Re2 {[%emt 0:00:45]} Rc3 {[%emt 0:00:33]} 50. Qd5 {[%emt 0:00:05]} Be3+ {[%emt 0:00:23]} 51. Kf1 {[%emt 0:00:27]} Rc1 {[%emt 0:01:00]} 52. Rxc1 {[%emt 0:00:40]} ({But not} 52. Rxe3 $2 Rxd1+ 53. Re1 Rd3 $19) 52... Qxc1+ $11 {[%emt 0:00:01][%mdl 4096] Endgame KQR-KQB} 53. Re1 {[%emt 0:00:03]} Qd2 {[%emt 0:00:08][%csl Ge3,LRd4,LRh2][%cal Rd2f2] The position is equal.} 54. Qxf7+ {[%emt 0:00:26]} Kh6 {[%emt 0:00:07][%csl Ge3][%cal Rd2f2]} 55. Qf8+ {[%emt 0:00:28]} Kh7 {[%emt 0:00:37][%csl Ge3][%cal Rd2f2]} 56. Qf7+ {[%emt 0:01:16]} Kh6 {[%emt 0:00:02][%csl Ge3][%cal Rd2f2]} 57. Qf8+ {[%emt 0:00:43]} Kh7 {[%emt 0:00:06][%csl Ge3][%cal Rd2f2]} 58. Qe7+ {[%emt 0:00:31]} Kg8 {[%emt 0:00:07][%csl Ge3][%cal Rd2f2]} 59. Qe8+ {[%emt 0:00:38]} Kg7 {[%emt 0:00:09][%csl Ge3][%cal Rd2f2]} 60. Qe7+ {[%emt 0:00:42]} Kg8 {[%emt 0:00:07][%csl Gh3][%cal Rd2g2]} 61. Qe8+ {[%emt 0:01:28] Weighted Error Value: White=0.27 (precise) /Black=0.26 (precise)} 1/2-1/2

[Event "Aktobe Open 2022"]
[Site "Aktobe"]
[Date "2022.06.15"]
[Round "2.6"]
[White "Rychagov, Andrey"]
[Black "Kozhabekov, Adilkhan"]
[Result "1-0"]
[ECO "D37"]
[WhiteElo "2549"]
[BlackElo "2080"]
[Annotator "TA"]
[PlyCount "52"]
[EventDate "2022.06.14"]
[EventType "swiss"]
[EventCountry "KAZ"]
[SourceTitle "playchess.com"]
[Source "ChessBase"]
[SourceQuality "1"]
[TimeControl "5400+30"]

{[%evp 19,52,25,47,49,77,83,81,50,82,87,83,80,136,125,237,85,338,320,383,398,399,400,721,713,1090,1024,1362,1345,1344,1324,1316,1283,1283,1283,2896]} 1. d4 {[%emt 0:01:38]} Nf6 {[%emt 0:03:02]} 2. c4 {[%emt 0:00:15]} e6 {[%emt 0:07:05]} 3. Nf3 {[%emt 0:00:20]} d5 {[%emt 0:01:38]} 4. Nc3 {[%emt 0:00:14]} Be7 {[%emt 0:01:33]} 5. Bf4 {[%emt 0:01:40]} O-O {[%emt 0:00:13]} 6. e3 {[%emt 0:00:18]} c5 {[%emt 0:06:46]} 7. dxc5 {[%emt 0:01:46]} Bxc5 {[%emt 0:01:07]} 8. Qc2 {[%emt 0:02:58]} Nc6 {[%emt 0:05:25]} 9. Rd1 {[%emt 0:04:51]} Qa5 {[%emt 0:01:01]} 10. a3 {[%emt 0:00:51]} Ne4 {[%emt 0:07:45]} 11. cxd5 {[%emt 0:06:19] D37: Queen's Gambit Declined: 5 Bf4.} Nxc3 {[%emt 0:08:03]} 12. bxc3 {[%emt 0:01:29]} exd5 {[%emt 0:00:20]} 13. Rxd5 {[%emt 0:00:43] White is better.} Qxa3 {[%emt 0:06:04][%cal Oc5b4]} 14. Ng5 {[%emt 0:01:16][%csl Gg5][%cal Rc2h7] [#]} g6 {[%emt 0:01:02][%cal Oc6b4]} 15. Bc4 $40 {[%emt 0:01:01][%mdl 128] White wants a kill.} Ne7 {[%emt 0:06:04]} (15... b6 $142) 16. Rd1 {[%emt 0:08:42] [#] Strongly threatening 0-0. White is more active.} b5 $146 {[%emt 0:16:54]} (16... Nc6 $16 {keeps fighting.}) ({Predecessor:} 16... Nf5 17. O-O Bd6 18. Qe4 Bxf4 19. Qxf4 Qe7 20. e4 Nh6 21. Qh4 Kg7 22. Ne6+ Qxe6 23. Bxe6 Bxe6 {1-0 (45) Esen,B (2555)-Javakhadze,Z (2418) Nakhchivan 2012}) 17. Bxb5 $2 {[%emt 0:06:58]} (17. Bb3 $18) 17... Bb7 $2 {[%emt 0:04:12][%mdl 8192] Black cannot hold the game after this.} (17... Bg4 $16 {is a better defense.} 18. Be2 Bxe2 19. Kxe2 Qa6+ 20. Qd3 Qc6) 18. O-O $18 {[%emt 0:03:54] [#] Threatens to win with Ra1.} Nd5 {[%emt 0:01:23][%cal Be7d5,Bd5f4,Bf4g2][%mdl 32]} 19. Bc4 {[%emt 0:06:53]} Nxf4 {[%emt 0:07:38]} 20. Ra1 {[%emt 0:01:20] Chess con chili.} ({Less strong is} 20. exf4 Be7 21. Nxf7 Ba6 $18) 20... Qxa1 {[%emt 0:03:57]} (20... Bd5 $142 21. Rxa3 Bxc4) 21. Rxa1 {[%emt 0:00:09] White is clearly winning.} Nxg2 {[%emt 0:00:09]} 22. Qb3 {[%emt 0:03:29][%csl LRb7,LRf7]} Rab8 {[%emt 0:00:50]} 23. Bxf7+ {[%emt 0:00:31]} Kg7 {[%emt 0:01:47]} 24. Ne6+ {[%emt 0:00:51]} Kh6 {[%emt 0:01:32]} 25. Nxc5 {[%emt 0:01:19]} Bc6 {[%emt 0:00:12]} 26. Qe6 {[%emt 0:00:45]} Rh8 {[%emt 0:07:48] Weighted Error Value: White=0.16 (very precise) /Black=0.81} 1-0

[Event "Aktobe Open 2022"]
[Site "Aktobe"]
[Date "2022.06.15"]
[Round "2.7"]
[White "Kenzhalin, Nursultan"]
[Black "Vokhidov, Shamsiddin"]
[Result "0-1"]
[ECO "E14"]
[WhiteElo "2209"]
[BlackElo "2536"]
[Annotator "TA"]
[PlyCount "157"]
[EventDate "2022.06.14"]
[EventType "swiss"]
[EventCountry "KAZ"]
[SourceTitle "playchess.com"]
[Source "ChessBase"]
[SourceQuality "1"]
[TimeControl "5400+30"]

{[%evp 23,157,-15,-2,-14,-8,0,0,-21,-22,-37,-33,-47,-48,-42,-53,-65,-62,-85,-85,-85,-78,-79,-90,-93,-83,-83,-70,-88,-70,-80,-61,-66,-43,-56,-56,-104,-96,-98,-89,-80,-81,-80,-61,-106,-113,-130,-133,-151,-145,-152,-152,-164,-154,-158,-145,-202,-201,-189,-198,-196,-190,-183,-153,-202,-159,-175,-164,-245,-224,-346,-325,-433,-423,-404,-389,-389,-387,-1234,-854,-1146,-378,-396,-387,-4141,-4141,-4141,-4141,-4141,-4141,-4141,-4141,-4141,-4141,-4141,-4141,-4141,-4141,-4141,-4141,-4141,-4141,-29974,-4141,-29979,-29980,-29980,-29977,-29976,-29976,-29976,-8016,-29982,-29983,-29983,-29984,-29984,-29984,-29984,-29983,-29987,-29988,-29988,-29989,-29989,-29990,-29990,-29991,-29993,-29994,-29994,-29995,-29995,-29996,-29996,-36,-29999]} 1. d4 {[%emt 0:00:03]} Nf6 {[%emt 0:00:05]} 2. c4 {[%emt 0:00:04]} e6 {[%emt 0:00:02]} 3. Nf3 {[%emt 0:00:11]} d5 {[%emt 0:00:05]} 4. e3 {[%emt 0:00:05]} b6 {[%emt 0:00:37]} 5. Nc3 {[%emt 0:01:02]} Bd6 {[%emt 0:00:32]} 6. Bd3 {[%emt 0:02:17]} Bb7 {[%emt 0:00:13]} 7. cxd5 {[%emt 0:00:36]} exd5 {[%emt 0:00:07]} 8. O-O {[%emt 0:00:18]} O-O {[%emt 0:00:33]} 9. Nb5 {[%emt 0:03:01]} Be7 {[%emt 0:00:58]} 10. b3 {[%emt 0:01:45]} a6 {[%emt 0:02:45]} 11. Nc3 {[%emt 0:00:06][%cal Bb5c3,Bc3e2,Be2f4][%mdl 32]} Bd6 {[%emt 0:00:53]} 12. Bb2 {[%emt 0:03:14]} Nbd7 {[%emt 0:00:12] 12...Nbd7 has become a bit dusty these days.} 13. Rc1 {[%emt 0:00:14] E14: Queen's Indian: Classical Variation (4 e3).} Qe7 {[%emt 0:02:03]} 14. Bf5 {[%emt 0:06:57]} g6 {[%emt 0:03:41] [#]} 15. Bxd7 $146 {[%emt 0:00:54] The position is equal.} ({Predecessor:} 15. Bh3 Rfe8 16. Ne2 Ne4 17. Bxd7 Qxd7 18. Ng3 f6 19. Nxe4 Rxe4 20. Rc2 Qe7 21. Nd2 Re6 22. Qf3 Rb8 23. Rfc1 {½-½ (64) Terry,R (2504)-Pichot,A (2630) Chess.com INT 2020}) 15... Nxd7 {[%emt 0:01:04]} 16. Ne2 {[%emt 0:02:36]} Rfe8 {[%emt 0:01:37]} 17. Nf4 {[%emt 0:03:49]} f6 {[%emt 0:01:14]} 18. b4 {[%emt 0:05:20]} c6 {[%emt 0:04:36]} 19. a3 {[%emt 0:00:30]} a5 {[%emt 0:02:05]} 20. Qb3 {[%emt 0:09:33]} axb4 {[%emt 0:12:19]} 21. axb4 {[%emt 0:00:24]} Bxb4 {[%emt 0:00:03]} 22. e4 {[%emt 0:07:29]} Qxe4 {[%emt 0:02:45] [#] Threatens to win with ...Bd6.} 23. Nxd5 {[%emt 0:00:19]} Qxd5 {[%emt 0:00:20]} 24. Qxb4 {[%emt 0:00:04]} Re4 {[%emt 0:02:11] aiming for ...c5.} 25. Qc3 {[%emt 0:13:47]} Rae8 {[%emt 0:01:49] Black is more active.} 26. Rfe1 {[%emt 0:02:05]} g5 {[%emt 0:02:55]} 27. h3 {[%emt 0:01:39]} Nf8 {[%emt 0:03:06]} (27... Rxe1+ {seems wilder.} 28. Nxe1 Re2 29. Nc2 c5) 28. Rxe4 {[%emt 0:02:50]} Rxe4 {[%emt 0:00:02]} 29. Re1 {[%emt 0:01:16] Black keeps a firm grip on the game.} (29. Ra1 $15) 29... Rxe1+ $17 {[%emt 0:02:11]} 30. Qxe1 {[%emt 0:00:59]} Kf7 {[%emt 0:01:07] Against Qe7+} 31. Qb4 {[%emt 0:01:07]} Nd7 {[%emt 0:00:44]} 32. Qa4 {[%emt 0:04:07]} Kg6 {[%emt 0:05:21]} 33. Qa3 {[%emt 0:01:57] [#]} c5 $1 {[%emt 0:00:29]} 34. Qd3+ {[%emt 0:04:17]} Qf5 {[%emt 0:01:55]} 35. Qxf5+ {[%emt 0:00:08]} Kxf5 {[%emt 0:00:01][%mdl 4096] Endgame KBN-KBN} 36. Nd2 {[%emt 0:00:01]} b5 {[%emt 0:01:02]} 37. dxc5 {[%emt 0:00:04]} Nxc5 {[%emt 0:00:04]} 38. Bd4 {[%emt 0:04:22]} Nd3 {[%emt 0:00:08]} 39. Nb3 {[%emt 0:00:43]} (39. g3 $17 {was worth a try.}) 39... Nf4 $19 {[%emt 0:03:17] Hoping for ...Ne2+.} 40. g4+ {[%emt 0:05:35]} Kg6 {[%emt 0:00:11]} 41. Kh2 {[%emt 0:01:20]} b4 {[%emt 0:00:44]} 42. Nc5 {[%emt 0:01:01]} Bc6 {[%emt 0:00:55]} 43. Ba1 {[%emt 0:01:05]} (43. Bb2 $17 {is a better defense.}) 43... Bb5 {[%emt 0:05:12]} 44. Kg3 {[%emt 0:03:31]} f5 {[%emt 0:03:09]} 45. gxf5+ {[%emt 0:01:27]} (45. Nb3 {was necessary.}) 45... Kxf5 {[%emt 0:00:06]} 46. f3 {[%emt 0:00:12]} (46. Nb3 $142 Ba4 47. Nd4+ Kg6 48. Nf3) 46... Bc6 {[%emt 0:01:10]} 47. Bb2 {[%emt 0:02:29]} h5 {[%emt 0:01:23] And now ...h4+ would win.} 48. h4 {[%emt 0:00:49]} gxh4+ {[%emt 0:01:11]} 49. Kxh4 {[%emt 0:00:02]} Bxf3 {[%emt 0:00:08] White must now prevent ...Ng6+.} 50. Bc1 $2 {[%emt 0:02:00]} (50. Nb3) 50... Ng6+ {[%emt 0:02:30]} 51. Kg3 {[%emt 0:00:28]} Bd1 $2 {[%emt 0:00:14]} (51... Bd5 52. Kh3 b3) 52. Nd3 {[%emt 0:01:12]} b3 {[%emt 0:00:14]} 53. Bb2 $2 {[%emt 0:00:08]} (53. Nc5) 53... h4+ {[%emt 0:02:09]} 54. Kh2 {[%emt 0:00:23]} Bc2 {[%emt 0:02:07]} 55. Nc5 {[%emt 0:00:44]} Kg4 {[%emt 0:00:27]} 56. Nd7 {[%emt 0:00:37]} Nf4 {[%emt 0:00:25]} 57. Ne5+ {[%emt 0:00:17]} Kh5 {[%emt 0:00:07]} 58. Nc4 {[%emt 0:01:10]} Bf5 {[%emt 0:00:45]} 59. Nd6 {[%emt 0:01:43]} Bg6 {[%emt 0:00:25]} 60. Nc4 {[%emt 0:00:46]} Nd3 {[%emt 0:00:10]} 61. Bc3 {[%emt 0:00:28]} Bf7 {[%emt 0:00:08]} 62. Nd6 {[%emt 0:00:15]} Be6 {[%emt 0:00:30] ( -> ...b2)} 63. Ne8 {[%emt 0:00:31]} Kg4 {[%emt 0:00:25]} (63... b2 64. Bxb2 Kg4 65. Bf6 $15) 64. Nf6+ {[%emt 0:00:24]} Kf5 {[%emt 0:00:54]} 65. Ne8 {[%emt 0:00:13]} Kg5 {[%emt 0:01:01]} ({Worse is} 65... b2 66. Bxb2 Kf4 67. Bf6 $15) 66. Nd6 {[%emt 0:00:48]} b2 {[%emt 0:00:52]} 67. Bxb2 {[%emt 0:00:11]} Nxb2 {[%emt 0:00:02]} 68. Ne4+ {[%emt 0:00:09]} Kf4 {[%emt 0:00:07]} 69. Nc3 {[%emt 0:00:29]} Ke3 {[%emt 0:01:01]} 70. Nb5 {[%emt 0:00:13]} Nd3 {[%emt 0:00:38]} 71. Nd6 {[%emt 0:00:06]} Ne1 {[%emt 0:00:55]} 72. Kg1 {[%emt 0:00:25]} Nf3+ {[%emt 0:00:41]} 73. Kg2 {[%emt 0:00:10]} Kf4 {[%emt 0:00:20]} 74. Nb5 {[%emt 0:00:52]} h3+ {[%emt 0:00:11]} 75. Kh1 {[%emt 0:00:32]} Bc4 {[%emt 0:00:12]} 76. Nc3 {[%emt 0:00:25]} Bf1 {[%emt 0:01:05][%csl Gh3][%cal Rf1g2]} 77. Ne2+ {[%emt 0:05:37]} Kg4 {[%emt 0:00:05][%csl Gh3][%cal Rf1g2]} 78. Nf4 {[%emt 0:00:00]} Kg5 $2 {[%emt 0:31:30]} ({And not} 78... Kf5 79. Nxh3 Nd2 80. Nf2 $15) (78... Kg3 {mates} 79. Nh5+ Kf2 80. Nf4 Bg2+ 81. Nxg2 hxg2#) 79. Ne2 $2 {[%emt 0:01:00][%mdl 8192] Weighted Error Value: White=0.53/Black=0.15 (very precise)} 0-1

[Event "Aktobe Open 2022"]
[Site "Aktobe"]
[Date "2022.06.15"]
[Round "2.8"]
[White "Volkov, Sergey"]
[Black "Akhilbay, Imangali"]
[Result "1-0"]
[ECO "E91"]
[WhiteElo "2510"]
[BlackElo "2002"]
[Annotator "TA"]
[PlyCount "101"]
[EventDate "2022.06.14"]
[EventType "swiss"]
[EventCountry "KAZ"]
[SourceTitle "playchess.com"]
[Source "ChessBase"]
[SourceQuality "1"]
[TimeControl "5400+30"]

{[%evp 18,101,43,26,28,-8,-8,-9,52,37,69,60,57,54,117,132,131,122,124,132,182,174,188,182,179,183,188,186,186,186,197,197,212,173,204,221,508,566,566,566,566,554,666,599,585,595,578,579,555,537,606,489,555,514,555,514,548,537,556,556,544,509,548,549,631,635,594,629,591,591,766,784,753,751,704,712,693,702,680,674,825,809,1116,1114,999,978]} 1. d4 {[%emt 0:00:08]} Nf6 {[%emt 0:00:31]} 2. c4 {[%emt 0:00:07]} g6 {[%emt 0:00:06]} 3. Nc3 {[%emt 0:00:10]} Bg7 {[%emt 0:00:07]} 4. e4 {[%emt 0:00:10]} d6 {[%emt 0:00:06]} 5. Nf3 {[%emt 0:00:22]} O-O {[%emt 0:00:07]} 6. Be2 {[%emt 0:00:23]} Bg4 {[%emt 0:01:43]} 7. Be3 {[%emt 0:00:52]} Nfd7 {[%emt 0:01:46]} 8. Rc1 {[%emt 0:00:51]} e5 {[%emt 0:01:31]} 9. d5 {[%emt 0:01:12]} a5 {[%emt 0:01:28]} 10. a3 {[%emt 0:02:28]} f5 {[%emt 0:02:09] E91: King's Indian: Classical: 6 Be2, unusual replies including 6...c5 and 6...Bg4.} 11. h3 {[%emt 0:04:39]} Bxf3 {[%emt 0:04:13]} 12. Bxf3 {[%emt 0:00:09]} Na6 {[%emt 0:01:33] Inhibits b4.} (12... f4 $11 13. Bd2 Nc5) 13. O-O {[%emt 0:02:01]} f4 {[%emt 0:04:30]} 14. Bd2 {[%emt 0:02:17] [#] White is more active.} h5 $146 {[%emt 0:00:13]} ({Predecessor:} 14... c6 15. Qc2 Ndc5 16. Rb1 Qb6 17. b3 Bf6 18. Ne2 Nd7 19. Rfd1 cxd5 20. exd5 Kg7 {1-0 (33) Hendricks,R (1948)-Faust,D (1862) FICGS email 2018}) 15. Na4 {[%emt 0:05:34]} Qe8 {[%emt 0:09:41] Black is on the road to losing.} (15... c6 $14) 16. Bxa5 $16 {[%emt 0:07:22]} Nf6 {[%emt 0:04:18]} 17. Bd2 {[%emt 0:00:41]} g5 {[%emt 0:01:13][%cal Og5g4]} 18. g4 {[%emt 0:01:01]} fxg3 {[%emt 0:10:59]} (18... hxg4 $16 19. hxg4 Nb8) 19. fxg3 $18 {[%emt 0:01:20]} ({Weaker is} 19. Bxg5 Qg6 20. h4 Bh6 $11) 19... Qg6 {[%emt 0:04:48]} 20. Bg2 {[%emt 0:04:51]} g4 {[%emt 0:07:54] [#] Threatens to win with ...gxh3.} 21. h4 {[%emt 0:00:20]} Nd7 {[%emt 0:02:29]} (21... Nxe4 $2 22. Qc2 Rf3 23. Rce1 $18) 22. Rxf8+ {[%emt 0:06:04]} Rxf8 {[%emt 0:00:30]} 23. b4 {[%emt 0:01:02] Inhibits Ndc5.} Bh6 {[%emt 0:03:26]} 24. Qe2 {[%emt 0:06:44]} Rf3 {[%emt 0:03:59]} 25. Rc3 {[%emt 0:00:27][%cal Bc1c3,Bc3f3,Bf3e3,Be3e6][%mdl 32]} ({Don't do} 25. Bxf3 $6 gxf3 26. Qf2 Bxd2 27. Qxd2 Qxg3+ 28. Kh1 Qxh4+ 29. Qh2 Qxe4) 25... Bxd2 {[%emt 0:08:19]} 26. Qxd2 {[%emt 0:00:21]} Nf6 $2 {[%emt 0:03:58]} (26... Rxc3 27. Nxc3 Nb6) 27. Bxf3 {[%emt 0:04:48] White is clearly winning.} gxf3 {[%emt 0:00:20]} 28. Rxf3 {[%emt 0:01:42]} Nxe4 {[%emt 0:00:44]} 29. Qd3 {[%emt 0:01:16] [#] Nc3 is the strong threat.} Qg4 {[%emt 0:00:45]} 30. Re3 {[%emt 0:00:54]} Nf6 {[%emt 0:00:53]} 31. Nc3 {[%emt 0:00:14]} Nb8 {[%emt 0:01:37]} 32. Ne4 {[%emt 0:02:57]} Nbd7 {[%emt 0:00:07]} 33. Nf2 {[%emt 0:01:27]} Qd4 {[%emt 0:02:29]} 34. Qxd4 {[%emt 0:02:32]} exd4 {[%emt 0:00:06][%mdl 4096] Endgame KRN-KNN} 35. Re6 {[%emt 0:07:12]} Kf7 {[%emt 0:00:11]} 36. Ne4 {[%emt 0:00:19]} d3 {[%emt 0:01:50]} 37. Kf1 {[%emt 0:00:13]} Ng4 {[%emt 0:01:16]} 38. Ng5+ {[%emt 0:07:10][%cal Be4g5,Bg5f3,Bf3d2][%mdl 32]} Kf8 {[%emt 0:00:05]} 39. Nf3 {[%emt 0:00:38]} Nb6 {[%emt 0:02:22]} 40. Nd2 {[%emt 0:00:28]} Ne5 {[%emt 0:01:31]} 41. c5 {[%emt 0:01:07]} Nxd5 {[%emt 0:01:04]} 42. cxd6 {[%emt 0:00:27]} cxd6 {[%emt 0:02:03]} 43. Rxd6 {[%emt 0:00:08]} Ne3+ {[%emt 0:00:18]} 44. Kf2 {[%emt 0:00:54]} N3g4+ {[%emt 0:02:28]} 45. Ke1 {[%emt 0:01:04]} Ne3 {[%emt 0:00:05]} 46. Rh6 {[%emt 0:02:04]} Nc2+ {[%emt 0:01:47]} 47. Kd1 {[%emt 0:00:08]} Nxa3 {[%emt 0:00:37]} 48. Rxh5 {[%emt 0:00:24]} Nc6 {[%emt 0:00:09]} 49. b5 {[%emt 0:01:26][%cal Bb4b5,Bb5b6][%mdl 32]} Nd4 {[%emt 0:00:20]} 50. b6 {[%emt 0:00:49]} Nab5 {[%emt 0:00:45]} 51. Ne4 {[%emt 0:00:35] Weighted Error Value: White=0.12 (very precise) /Black=0.33} 1-0